[Event "44th Chess Olympiad Women 2022"]
[Site "Chennai"]
[Date "2022.07.29"]
[Round "1.42"]
[White "Sibajeva, Marija"]
[Black "Beukes Jamie-Nicole"]
[Result "1-0"]
[ECO "B48"]
[WhiteElo "2032"]
[BlackElo "1231"]
[Annotator "TA"]
[PlyCount "65"]
[EventDate "2022.07.29"]
[EventType "team-tourn"]
[EventCountry "IND"]
[SourceTitle "playchess.com"]
[Source "ChessBase"]
[SourceQuality "1"]
[WhiteTeam "Lithuania"]
[BlackTeam "Namibia"]
[WhiteTeamCountry "LTU"]
[BlackTeamCountry "NAM"]
[TimeControl "40/5400+30:1800+30"]

{[%evp 14,65,30,14,16,35,31,40,16,10,17,29,21,0,60,-12,44,-7,88,73,160,22,194,215,416,205,926,620,982,154,171,136,181,116,117,122,195,189,204,180,275,270,300,305,476,472,455,448,662,629,889,833,29976,12837]} 1. e4 {[%emt 0:00:03]} c5 {[%emt 0:00:15]} 2. Nf3 {[%emt 0:00:05]} e6 {[%emt 0:00:14]} 3. d4 {[%emt 0:00:03]} cxd4 {[%emt 0:00:06]} 4. Nxd4 {[%emt 0:00:03]} Nc6 {[%emt 0:00:14]} 5. Nc3 {[%emt 0:01:37]} Qc7 {[%emt 0:00:41]} 6. Be3 {[%emt 0:01:06]} a6 {[%emt 0:00:27]} 7. Qd2 {[%emt 0:01:49] 7.g4 might become the main line.} Nf6 {[%emt 0:03:08]} 8. f3 {[%emt 0:02:45]} Be7 {[%emt 0:02:30] B48: Sicilian: Taimanov: 5 Nc3 Qc7 6 Be3 a6 without Be2.} 9. O-O-O {[%emt 0:00:32]} O-O {[%emt 0:02:32]} 10. g4 {[%emt 0:00:57][%cal Bg2g4,Bg4g5][%mdl 32]} b5 {[%emt 0:13:44] White is slightly better.} 11. Be2 {[%emt 0:04:44]} Bb7 {[%emt 0:06:58]} 12. g5 {[%emt 0:05:06] [#]} Ne8 $146 {[%emt 0:04:46]} ({Predecessor:} 12... Nh5 13. f4 Nxd4 14. Bxh5 b4 15. Bxd4 bxc3 16. Bxc3 Bxe4 17. Qd4 Qxf4+ 18. Kb1 e5 19. Qxd7 Qxg5 {0-1 (31) Shukhman,A (1866)-Brunner,N (2428) Chess.com INT 2020}) 13. Nb3 {[%emt 0:03:33]} d6 {[%emt 0:17:44]} (13... Ne5 $11) 14. f4 {[%emt 0:03:16]} ({White should try} 14. h4 $14) 14... Rd8 {[%emt 0:12:56]} (14... Na5 $1 $11) 15. Rhg1 {[%emt 0:01:25]} ({Better is} 15. Bf3 $14) 15... Ba8 {[%emt 0:07:18]} (15... d5 $1 $11 {remains equal.} 16. exd5 Nb4) 16. f5 $36 {[%emt 0:01:57][%mdl 2048] White is really pushing.} Rc8 {[%emt 0:14:47]} ({Black should play} 16... d5) 17. Bg4 {[%emt 0:04:43] 0x0.0024d60b0a2edp-1022s more active pieces. The black rooks are badly placed.} (17. f6 Bd8 $16) (17. fxe6 $16 {Black must now prevent Nd5.} fxe6 18. Bg4) 17... exf5 $2 {[%emt 0:04:40]} (17... Ne5 $11 18. a3 (18. fxe6 f5 $15) 18... Nxg4 19. Rxg4 exf5 20. exf5 Bf3) 18. Nd5 $18 {[%emt 0:01:24]} (18. Bxf5 $6 Rb8 $16) 18... Qb8 {[%emt 0:02:03]} (18... fxg4 19. Nxc7 Nxc7) 19. Bxf5 {[%emt 0:03:09]} (19. exf5 $142 {[%cal Of5f6] And now f6! would win.} f6 20. Nd4) 19... Rd8 $2 {[%emt 0:02:25]} (19... Rc7 20. Bb6 (20. Nxc7 Nxc7 21. Bf4 g6 $18) 20... Rb7) 20. Bb6 {[%emt 0:00:34]} Ne5 {[%emt 0:00:11]} 21. Bxd8 $2 {[%emt 0:00:26]} (21. Nxe7+ $18 {is the precise move to win.} Kh8 22. Qf2) 21... Bxd8 $16 {[%emt 0:00:25]} 22. Rg3 {[%emt 0:07:02] Prevents Nf3.} Bb7 {[%emt 0:02:03]} 23. Qe2 {[%emt 0:02:29]} (23. Kb1 $18) 23... g6 {[%emt 0:01:00]} 24. Bh3 {[%emt 0:00:59]} Ng7 {[%emt 0:00:14] [#]} (24... Bxd5 $16 25. exd5 (25. Rxd5 Ng7 $16) 25... Ng7) 25. Nf6+ $1 $18 {[%emt 0:00:24]} Kh8 {[%emt 0:00:52]} 26. Bg4 {[%emt 0:04:27]} Nxg4 {[%emt 0:00:33]} (26... Bxf6 $142 27. gxf6 Ne8) 27. Qxg4 {[%emt 0:00:55] aiming for Nd7.} ({Inferior is} 27. Nxg4 Bxg5+ 28. Kb1 f5 29. exf5 Nxf5 $14) ({But not} 27. Rxg4 Qc7 28. Rh4 Nh5 $18) 27... Bc8 {[%emt 0:00:38]} 28. Qh4 {[%emt 0:01:05][%csl Gf6][%cal Rh4h7]} Bxf6 {[%emt 0:00:18]} (28... h5 $142 29. Kb1 (29. gxh6 Nh5 $18) 29... Qb7) 29. gxf6 {[%emt 0:00:05] [#] Threatens to win with Qh6.} Nh5 {[%emt 0:00:09]} 30. Rgd3 {[%emt 0:00:45]} Bb7 {[%emt 0:00:52]} (30... Qc7 $142 31. Rxd6 h6) 31. Rxd6 {[%emt 0:00:18] Nc5 is the strong threat.} Re8 {[%emt 0:00:39]} 32. Nc5 {[%emt 0:00:22]} Qa8 {[%emt 0:00:24]} 33. Nxb7 {[%emt 0:01:10] Weighted Error Value: White=0.73/Black=0.99} 1-0

[Event "44th Chess Olympiad Women 2022"]
[Site "Chennai"]
[Date "2022.07.29"]
[Round "1.42"]
[White "Van Wyk, Keisha C"]
[Black "Baginskaite, Kamile"]
[Result "0-1"]
[ECO "B90"]
[WhiteElo "1237"]
[BlackElo "2134"]
[Annotator "TA"]
[PlyCount "70"]
[EventDate "2022.07.29"]
[EventType "team-tourn"]
[EventCountry "IND"]
[SourceTitle "playchess.com"]
[Source "ChessBase"]
[SourceQuality "1"]
[WhiteTeam "Namibia"]
[BlackTeam "Lithuania"]
[WhiteTeamCountry "NAM"]
[BlackTeamCountry "LTU"]
[TimeControl "40/5400+30:1800+30"]

{[%evp 13,70,6,25,0,-2,0,-6,0,-6,-50,0,0,11,0,0,0,0,0,0,-12,-24,-94,-102,-102,-61,-61,-57,-61,-61,-327,-312,-446,-434,-685,-643,-560,-463,-483,-477,-451,-432,-438,-298,-390,-385,-943,-431,-901,-743,-716,-639,-2100,-1874,-29993,-29994,-29994,-29994,-29999,-29997]} 1. e4 {[%emt 0:00:15]} c5 {[%emt 0:00:08]} 2. Nf3 {[%emt 0:00:18]} d6 {[%emt 0:00:09]} 3. d4 {[%emt 0:01:04]} cxd4 {[%emt 0:00:07]} 4. Nxd4 {[%emt 0:00:18]} Nf6 {[%emt 0:00:06]} 5. Nc3 {[%emt 0:00:56]} a6 {[%emt 0:00:06]} 6. Be3 {[%emt 0:02:24]} e5 {[%emt 0:03:25]} 7. Nf3 {[%emt 0:04:35]} Qc7 {[%emt 0:00:44]} 8. Bd3 {[%emt 0:01:57] B90: Sicilian Najdorf: Unusual White 6th moves, 6 Be3 Ng4 and 6 Be3 e5.} b5 {[%emt 0:01:17] [#]} 9. Nd5 $146 {[%emt 0:09:24]} ({Predecessor:} 9. a3 Be7 10. O-O O-O 11. Qd2 Nbd7 12. Rfd1 Nb6 13. h3 Nc4 14. Bxc4 Qxc4 15. Qd3 Qc7 {0-1 (32) Hapugala,H (1107)-De Silva,O (1902) Negambo 2017}) 9... Nxd5 {[%emt 0:02:00]} 10. exd5 {[%emt 0:04:02][%cal Oc2c4] The position is equal.} Be7 {[%emt 0:00:08]} 11. Ng5 {[%emt 0:07:36]} (11. c4 $5) 11... Bxg5 {[%emt 0:09:31]} ({Black should try} 11... Nd7 $15) 12. Bxg5 $11 {[%emt 0:01:39]} f5 {[%emt 0:00:09][%cal Bf7f5,Bf5f4][%mdl 32]} 13. O-O {[%emt 0:02:35]} O-O {[%emt 0:00:37]} 14. Rc1 {[%emt 0:03:20]} Nd7 {[%emt 0:01:07]} 15. c4 {[%emt 0:04:57]} b4 {[%emt 0:02:47]} 16. Qc2 {[%emt 0:09:48]} Nc5 {[%emt 0:18:10]} 17. Be2 {[%emt 0:03:07]} (17. f3 $11 {keeps the balance.}) 17... f4 $17 {[%emt 0:03:20]} 18. f3 {[%emt 0:06:47]} Bf5 {[%emt 0:01:20] Against Bd3} 19. Qd2 {[%emt 0:03:00]} a5 $36 {[%emt 0:01:01][%mdl 2048] White is under pressure.} 20. Bh4 {[%emt 0:04:33]} Rae8 {[%emt 0:01:01] Black is more active.} 21. g3 $2 {[%emt 0:04:04][%mdl 8192] Now White is beyond hope.} ({White should play} 21. Bf2 $15) 21... Bh3 $19 {[%emt 0:08:05]} 22. Rf2 {[%emt 0:01:53]} (22. Kh1 {was worth a try.} fxg3 23. Bxg3) 22... e4 {[%emt 0:02:45]} 23. Rg2 {[%emt 0:09:26]} (23. Qd1 $142 e3 24. Rf1) 23... Bxg2 {[%emt 0:10:16]} 24. Kxg2 {[%emt 0:00:20]} exf3+ {[%emt 0:01:33]} 25. Bxf3 {[%emt 0:00:43]} Re3 {[%emt 0:00:49][%cal Oe3f3,Be8e3,Be3d3,Bd3d4,Bd4g4,Bg4f4][%mdl 32] [#] Strongly threatening ...Rxf3!} 26. gxf4 {[%emt 0:05:06]} Rd3 {[%emt 0:01:09]} 27. Qe2 {[%emt 0:02:47]} Rxf4 {[%emt 0:00:11]} 28. Bg4 {[%emt 0:01:38]} Rdd4 {[%emt 0:07:36]} 29. Qe8+ {[%emt 0:03:19]} Rf8 {[%emt 0:00:05]} 30. Qh5 {[%emt 0:01:25]} (30. Be6+ $142 Nxe6 31. Qxe6+ Qf7 32. Kh3) 30... g6 {[%emt 0:03:31]} 31. Qg5 {[%emt 0:01:03]} Qf7 {[%emt 0:01:14][%cal Oh7h6] [#] aiming for ...h6!} 32. Re1 {[%emt 0:01:16]} h6 {[%emt 0:00:44]} 33. Qxh6 {[%emt 0:00:52]} Rxg4+ {[%emt 0:00:08] Black mates.} 34. Kh3 {[%emt 0:00:23]} Qf5 {[%emt 0:01:18][%cal Rg4g1]} 35. Re7 {[%emt 0:00:27]} Rf4+ {[%emt 0:01:18] Weighted Error Value: White=1.11/Black=0.24 (precise)} 0-1

[Event "44th Chess Olympiad Women 2022"]
[Site "Chennai"]
[Date "2022.07.29"]
[Round "1.42"]
[White "Tsuses, Patience"]
[Black "Simkunaite, Gabija"]
[Result "0-1"]
[ECO "B15"]
[WhiteElo "1075"]
[BlackElo "2010"]
[Annotator "TA"]
[PlyCount "92"]
[EventDate "2022.07.29"]
[EventType "team-tourn"]
[EventCountry "IND"]
[SourceTitle "playchess.com"]
[Source "ChessBase"]
[SourceQuality "1"]
[WhiteTeam "Namibia"]
[BlackTeam "Lithuania"]
[WhiteTeamCountry "NAM"]
[BlackTeamCountry "LTU"]
[TimeControl "40/5400+30:1800+30"]

{[%evp 11,92,16,56,23,23,9,14,0,0,16,20,-40,-32,-37,-36,-89,-108,-99,-95,-151,-150,-212,-209,-245,-223,-238,-225,-228,-209,-212,-194,-200,-144,-163,-160,-164,-156,-196,-143,-142,-143,-135,-135,-133,-130,-235,-235,-235,-235,-235,-186,-280,-267,-323,-308,-326,-318,-305,-290,-454,-435,-518,-513,-571,-570,-518,-498,-827,-796,-804,-818,-933,-933,-29976,-29970,-29983,-29984,-29984,-29985,-29986,-29987,-29987,-29988]} 1. e4 {[%emt 0:00:03]} c6 {[%emt 0:00:18]} 2. d4 {[%emt 0:00:30]} d5 {[%emt 0:00:04]} 3. Nc3 {[%emt 0:01:39]} dxe4 {[%emt 0:00:30]} 4. Nxe4 {[%emt 0:04:05]} Nf6 {[%emt 0:00:18]} 5. Nxf6+ {[%emt 0:04:32]} exf6 {[%emt 0:00:05]} 6. Nf3 {[%emt 0:09:16]} Bg4 {[%emt 0:00:45][%cal Bc8g4,Bg4h5,Bh5g6][%mdl 32]} 7. Be2 {[%emt 0:01:04] B15: Caro-Kann: 3 Nc3: 3...g6 and 3...dxe4 4 Nxe4 Nf6 5 Nxf6+ exf6.} Bd6 {[%emt 0:00:49]} 8. Be3 {[%emt 0:10:07]} O-O {[%emt 0:02:06]} 9. h3 {[%emt 0:00:51] The position is equal.} Bh5 {[%emt 0:03:19]} 10. g4 {[%emt 0:04:46]} Bg6 {[%emt 0:00:05]} 11. Bd3 {[%emt 0:03:21] [#]} ({Better is} 11. Nh4 $1 $11) 11... Re8 $146 {[%emt 0:08:56]} ({Predecessor:} 11... f5 12. Qd2 Qf6 13. Ne5 Bxe5 14. dxe5 Qxe5 15. O-O-O Qe6 16. Qb4 b5 17. gxf5 Bxf5 {0-1 (27) Dilic,R (1920)-Jovic,S (2645) Trieste 1997}) 12. Qd2 {[%emt 0:08:05]} Bf4 {[%emt 0:05:03]} 13. O-O-O {[%emt 0:02:11]} (13. O-O $15 Bc7 14. Bxg6 hxg6 15. c4) 13... Bxe3 $17 {[%emt 0:00:13]} 14. fxe3 {[%emt 0:00:57]} Qd5 {[%emt 0:00:08][%csl LRa2,LRf3]} 15. Bxg6 {[%emt 0:12:25]} (15. e4 $142 Qxa2 16. Qb4) 15... hxg6 {[%emt 0:00:09]} ({Stronger than} 15... fxg6 16. Qb4 $17) 16. Nh2 {[%emt 0:05:07]} (16. e4 $17 Qxa2 17. Qd3 (17. Qb4 $2 Na6 $19)) 16... Qxa2 $19 {[%emt 0:00:55][%cal Ra2a1] [#]} 17. c3 {[%emt 0:07:47]} Nd7 {[%emt 0:00:09][%cal Bb8d7,Bd7b6,Bb6c4][%mdl 32]} 18. Rhe1 {[%emt 0:11:30]} Nb6 {[%emt 0:03:07]} 19. Qc2 {[%emt 0:01:03]} Nc4 {[%emt 0:02:00]} 20. Nf1 {[%emt 0:00:41]} a5 {[%emt 0:01:17]} ({Not} 20... Qa1+ 21. Qb1 Qa5 22. e4) 21. Qb1 {[%emt 0:03:31]} Qxb1+ {[%emt 0:05:09]} 22. Kxb1 {[%emt 0:00:03]} f5 {[%emt 0:01:40]} 23. b3 {[%emt 0:02:27]} Nd6 {[%emt 0:00:27]} 24. Ng3 {[%emt 0:01:15]} fxg4 {[%emt 0:00:17]} (24... b5 $19 25. Kb2 a4) 25. hxg4 $17 {[%emt 0:00:26]} Ne4 {[%emt 0:00:09]} 26. Nxe4 {[%emt 0:00:29]} Rxe4 {[%emt 0:00:06][%mdl 4096] Endgame KRR-KRR} 27. g5 {[%emt 0:00:34]} Rae8 {[%emt 0:00:16]} 28. Rd2 {[%emt 0:02:07]} (28. Kc2 $17) 28... Rxe3 $19 {[%emt 0:01:47]} 29. Rxe3 {[%emt 0:00:22]} Rxe3 {[%emt 0:00:05] KR-KR} 30. Kc2 {[%emt 0:00:12]} Kf8 {[%emt 0:06:13] Strongly threatening ...Rg3.} 31. Rg2 {[%emt 0:00:23]} (31. d5 $142) 31... b5 {[%emt 0:01:31]} 32. Kd2 {[%emt 0:00:40]} Rf3 {[%emt 0:00:10]} 33. Kc2 {[%emt 0:00:34]} Ke7 {[%emt 0:00:54]} 34. Re2+ {[%emt 0:01:00]} Kd7 {[%emt 0:00:17]} 35. Re5 {[%emt 0:00:08]} (35. Rh2 {might work better.}) 35... Rf5 {[%emt 0:00:53] [#] White must now prevent ...Rxe5.} 36. Re2 {[%emt 0:03:16]} Rxg5 {[%emt 0:00:07]} 37. Rh2 {[%emt 0:00:44]} Rh5 {[%emt 0:01:08] Inhibits Rh7.} 38. Rf2 {[%emt 0:00:24]} f6 {[%emt 0:00:17][%cal Bf7f6,Bf6f5][%mdl 32]} 39. Rf3 {[%emt 0:00:33]} (39. Rf1 $142) 39... g5 {[%emt 0:00:23][%cal Bg6g5,Bg5g4,Bg4f3][%mdl 32] ...g4 is the strong threat.} 40. Kd3 {[%emt 0:00:09]} g4 {[%emt 0:00:09]} 41. Rf4 {[%emt 0:30:48]} f5 {[%emt 0:30:43] ( -> ...Rh3+)} 42. c4 {[%emt 0:00:51]} Rh3+ {[%emt 0:00:48] Black mates.} 43. Kd2 {[%emt 0:00:00]} Rf3 {[%emt 0:00:00]} 44. Rxf3 {[%emt 0:00:00]} gxf3 {[%emt 0:00:00]} 45. cxb5 {[%emt 0:00:00]} cxb5 {[%emt 0:00:00]} 46. Ke3 {[%emt 0:00:00]} a4 {[%emt 0:00:00] Weighted Error Value: White=0.65/Black=0.08 (flawless)} 0-1

[Event "44th Chess Olympiad Women 2022"]
[Site "Chennai"]
[Date "2022.07.29"]
[Round "1.43"]
[White "Radikovic, Anamarija"]
[Black "Cho, Hung-Ling"]
[Result "1-0"]
[ECO "C61"]
[WhiteElo "2099"]
[BlackElo "1576"]
[Annotator "TA"]
[PlyCount "39"]
[EventDate "2022.07.29"]
[EventType "team-tourn"]
[EventCountry "IND"]
[SourceTitle "playchess.com"]
[Source "ChessBase"]
[SourceQuality "1"]
[WhiteTeam "Croatia"]
[BlackTeam "Taiwan"]
[WhiteTeamCountry "CRO"]
[BlackTeamCountry "TPE"]
[TimeControl "40/5400+30:1800+30"]

{[%evp 15,39,41,32,48,62,57,63,40,65,56,75,62,56,56,53,68,64,56,139,136,137,137,138,43,29998,29999]} 1. e4 {[%emt 0:00:02]} e5 {[%emt 0:00:08]} 2. Nf3 {[%emt 0:00:06]} Nc6 {[%emt 0:00:06]} 3. Bb5 {[%emt 0:00:03]} Nd4 {[%emt 0:00:29]} 4. Nxd4 {[%emt 0:00:07]} exd4 {[%emt 0:00:06]} 5. O-O {[%emt 0:00:06]} c6 {[%emt 0:00:17]} 6. Bc4 {[%emt 0:00:07]} Nf6 {[%emt 0:06:02]} 7. d3 {[%emt 0:00:21]} d5 {[%emt 0:04:09]} 8. exd5 {[%emt 0:00:13]} Nxd5 {[%emt 0:00:18]} 9. Re1+ {[%emt 0:01:14] C61: Ruy Lopez: Bird's Defence.} Be6 {[%emt 0:08:14]} 10. Qh5 {[%emt 0:03:00]} Qd6 {[%emt 0:13:15]} 11. Bg5 {[%emt 0:09:09] [#] White is slightly better.} g6 $146 {[%emt 0:14:49]} ({Predecessor:} 11... Be7 12. Bxe7 Qxe7 13. Nd2 O-O 14. Bxd5 cxd5 15. Nb3 Qc7 16. Re2 a5 17. Nxd4 Qb6 {1-0 (42) Halamus,A (1900)-Andrzejewska,A (1975) Sielpa 2004}) 12. Qh4 {[%emt 0:01:51] [#] Hoping for Nd2.} Bg7 {[%emt 0:02:35]} 13. Bxd5 {[%emt 0:01:41]} Qxd5 {[%emt 0:02:22]} 14. Bf6 $36 {[%emt 0:00:12][%mdl 2048] White has the initiative.} O-O {[%emt 0:04:40]} 15. Nd2 {[%emt 0:01:56]} Bxf6 {[%emt 0:11:09]} 16. Qxf6 {[%emt 0:00:06]} Rad8 {[%emt 0:00:34]} (16... b6 $14) 17. Re5 $16 {[%emt 0:02:37]} Qd7 {[%emt 0:09:29][%cal Oc6c5]} 18. Ne4 {[%emt 0:01:59] Qh4 is the strong threat. White is more active.} Qc7 {[%emt 0:06:50]} 19. Ng3 {[%emt 0:04:21]} (19. h4 $16 {Black must now prevent h5.} Rd5 20. Rxd5 Bxd5 21. Qxd4 Bxe4 22. Qxe4 (22. dxe4 c5 $14)) 19... Rd6 $2 {[%emt 0:04:04][%mdl 8192] [#]} (19... Rd5 $14 20. Rxd5 cxd5) 20. Nh5 $1 {[%emt 0:00:31][%mdl 512] Weighted Error Value: White=0.13 (very precise) /Black=0.79} 1-0

[Event "44th Chess Olympiad Women 2022"]
[Site "Chennai"]
[Date "2022.07.29"]
[Round "1.43"]
[White "Dejanovic, Tereza"]
[Black "Shih, Ching-An"]
[Result "1-0"]
[ECO "C87"]
[WhiteElo "2011"]
[BlackElo "1582"]
[Annotator "TA"]
[PlyCount "89"]
[EventDate "2022.07.29"]
[EventType "team-tourn"]
[EventCountry "IND"]
[SourceTitle "playchess.com"]
[Source "ChessBase"]
[SourceQuality "1"]
[WhiteTeam "Croatia"]
[BlackTeam "Taiwan"]
[WhiteTeamCountry "CRO"]
[BlackTeamCountry "TPE"]
[TimeControl "40/5400+30:1800+30"]

{[%evp 18,89,38,43,29,25,27,2,0,0,0,0,16,16,2,12,8,0,10,0,43,0,0,-49,-46,-68,0,-13,18,6,10,16,16,35,89,69,80,75,80,70,62,71,420,285,644,624,625,626,1051,895,981,862,839,818,1186,1175,1159,741,857,765,752,718,683,680,649,641,641,582,2410,847,29984,29985,5481,3689]} 1. e4 {[%emt 0:00:01]} e5 {[%emt 0:00:16]} 2. Nf3 {[%emt 0:00:05]} Nc6 {[%emt 0:00:05]} 3. Bb5 {[%emt 0:00:07]} a6 {[%emt 0:00:14]} 4. Ba4 {[%emt 0:00:04]} Nf6 {[%emt 0:00:39]} 5. O-O {[%emt 0:00:20]} d6 {[%emt 0:00:36]} 6. Re1 {[%emt 0:00:09]} Be7 {[%emt 0:00:07]} 7. c3 {[%emt 0:00:08]} O-O {[%emt 0:00:27]} 8. h3 {[%emt 0:00:19]} b5 {[%emt 0:01:57]} 9. Bc2 {[%emt 0:00:12]} Bb7 {[%emt 0:05:21]} 10. d4 {[%emt 0:09:39]} Re8 {[%emt 0:03:42] C87: Closed Ruy Lopez: Steinitz-type lines after 6 Re1 d6.} 11. Nbd2 {[%emt 0:06:24]} Bf8 {[%emt 0:03:13]} 12. a4 {[%emt 0:03:59]} exd4 {[%emt 0:04:20] The position is equal.} 13. cxd4 {[%emt 0:04:43]} Nb4 {[%emt 0:00:18]} 14. Bb1 {[%emt 0:00:13]} c5 {[%emt 0:00:44]} 15. d5 {[%emt 0:03:29] [#]} g6 $146 {[%emt 0:03:01]} ({Predecessor:} 15... Nd7 16. Ra3 g6 17. Nf1 Bg7 18. Bg5 Nf6 19. Qd2 Qd7 20. a5 Qc7 21. Ng3 Nd7 {½-½ (60) Alarcon Careaga,G (2144)-Saldano Dayer,H (2432) Buenos Aires 2015}) 16. Nf1 {[%emt 0:02:04]} Bg7 {[%emt 0:00:09]} 17. Qb3 {[%emt 0:03:31]} bxa4 {[%emt 0:04:53]} 18. Qxa4 {[%emt 0:08:26]} Qd7 {[%emt 0:01:30]} 19. N1d2 {[%emt 0:02:56]} Qb5 {[%emt 0:02:50] Prevents Nc4.} 20. Qb3 {[%emt 0:04:08]} (20. Nb3 $11) 20... a5 $1 $15 {[%emt 0:11:05]} 21. Qa4 {[%emt 0:08:15]} Qa6 {[%emt 0:02:13]} ({Black should try} 21... Ba6 $15) 22. Ra3 {[%emt 0:16:08]} c4 {[%emt 0:06:15]} (22... Bc8 $5 {[%cal Rc8d7]}) 23. Nf1 {[%emt 0:00:43][%cal Bd2f1,Bf1g3,Bg3h5,Bh5f6][%mdl 32]} Bc8 {[%emt 0:02:05]} 24. Bd2 {[%emt 0:01:31]} Bd7 {[%emt 0:00:05]} 25. Qd1 {[%emt 0:00:08]} Qb7 {[%emt 0:01:45]} ({Better is} 25... Nd3 $14) 26. Bc3 {[%emt 0:00:39]} Bb5 {[%emt 0:07:05]} 27. Ng3 {[%emt 0:06:14]} Nd7 {[%emt 0:03:24]} 28. Bxg7 {[%emt 0:03:44]} Kxg7 {[%emt 0:00:05]} 29. Qd2 {[%emt 0:01:24]} Nc5 $2 {[%emt 0:01:36][%mdl 8192] This costs Black the game.} (29... Qb6 $16 {is tougher.}) 30. Qg5 {[%emt 0:01:49] [#] Black must now prevent Nf5+.} Qd7 {[%emt 0:14:44]} (30... Kg8 $2 31. Nh5 Nbd3 32. Bxd3 Nxd3 33. Re3 (33. Nf6+ Kg7 $18)) (30... Ncd3 31. Nf5+ Kg8) 31. Nh5+ $18 {[%emt 0:01:11]} Kf8 {[%emt 0:00:08]} 32. Nf6 {[%emt 0:00:36]} Qd8 {[%emt 0:03:54]} 33. Qh6+ {[%emt 0:02:47]} Ke7 {[%emt 0:00:06]} 34. Nxe8 {[%emt 0:00:17]} Kxe8 {[%emt 0:01:40]} 35. Qxh7 {[%emt 0:04:17]} Ncd3 {[%emt 0:00:29]} 36. Bxd3 {[%emt 0:00:50]} Nxd3 {[%emt 0:00:05]} 37. Re2 {[%emt 0:01:47] aiming for e5.} Ra7 {[%emt 0:05:44]} 38. Nd4 {[%emt 0:03:07]} Qb6 {[%emt 0:00:37]} 39. Nxb5 {[%emt 0:01:41]} Qxb5 {[%emt 0:00:08]} 40. Rc3 {[%emt 0:01:08]} Re7 {[%emt 0:01:55]} 41. Qh8+ {[%emt 0:31:12]} Kd7 {[%emt 0:30:07]} 42. Qd4 {[%emt 0:00:29]} Nxb2 {[%emt 0:00:40]} 43. Ra3 {[%emt 0:00:00]} (43. Qa7+ $142 Ke8 44. Qa8+ Kd7 {[#]} 45. Rxb2 $1 {[%mdl 512]} Qxb2 46. Rxc4 Qb1+ 47. Kh2 Rxe4 48. Qa7+ Kd8 49. Rc7) 43... c3 {[%emt 0:00:00]} 44. Qa7+ {[%emt 0:00:00]} Kd8 {[%emt 0:00:00]} 45. Qa8+ {[%emt 0:00:00] Weighted Error Value: White=0.19 (very precise) /Black=0.74} 1-0